bitfinex/quotes_ETHUSD_20220119
["timestamp","ask_amount","ask_price","bid_price","bid_amount"]
[1642569593761,0.00113685,3107.9,3107.7,2.20208728]
[1642569594161,0.00341054,3108.3,3108.0,1.11157666]
[1642569594362,0.00341054,3108.3,3108.1,1.848612]
[1642569594561,0.00341054,3108.3,3108.1,0.3]
[1642569594960,0.00341054,3108.3,3108.0,1.41157666]
[1642569595161,0.00341054,3108.3,3108.0,1.11157666]
[1642569595368,0.00341054,3108.3,3108.0,1.41157666]
[1642569595761,0.00341054,3108.3,3108.2,0.03841111]
[1642569596813,0.00341054,3108.3,3107.7,1.2179]
[1642569597017,1.61302054,3108.3,3107.7,1.2179]
[1642569597215,1.61302054,3108.3,3107.1,1.1903]
[1642569597414,1.31072054,3108.3,3107.2,2.73509243]
[1642569597614,1.31072054,3108.3,3107.2,0.00625266]
[1642569597813,1.31072054,3108.3,3107.3,0.00568423]
[1642569598019,1.31072054,3108.3,3107.2,0.00625266]
[1642569598216,1.31072054,3108.3,3107.2,1.80288478]
[1642569598413,0.80477,3108.2,3107.2,1.80288478]
[1642569598614,1.6096334,3108.0,3107.3,0.00568423]
[1642569598815,0.8048134,3108.0,3107.3,0.00568423]
[1642569599615,1.60958,3107.9,3107.3,0.00568423]
[1642569599860,0.8047797,3107.8,3107.3,0.00568423]
[1642569600765,0.8047797,3107.8,3107.2,1.7888889]
[1642569601165,0.8047797,3107.8,3107.3,0.00568423]
[1642569601566,1.6095797,3107.8,3107.3,0.00568423]
[1642569601768,2.4143997,3107.8,3107.3,0.00568423]
[1642569602467,0.5074193,3107.6,3107.2,0.00625266]
[1642569602866,1.60962,3107.8,3107.2,0.00625266]
[1642569603069,1.60962,3107.8,3107.1,0.00682108]
[1642569603703,2.4144341,3107.8,3107.1,0.00682108]
[1642569603903,2.4144341,3107.8,3107.2,2.73505285]
[1642569604305,2.4144341,3107.8,3107.3,0.00568423]
[1642569604908,2.4144341,3107.8,3107.2,0.00625266]
[1642569606613,3.4144341,3107.8,3107.2,0.00625266]
[1642569606811,2.4144341,3107.8,3107.2,0.00625266]
[1642569607012,2.4144341,3107.8,3107.1,0.00682108]
[1642569607656,2.1222341,3107.8,3107.2,2.73513322]
[1642569607862,2.1222341,3107.8,3107.1,0.00682108]
[1642569608059,2.1222341,3107.8,3107.3,0.00568423]
[1642569608263,2.1222341,3107.8,3107.1,1.80252345]
[1642569608459,2.1222341,3107.8,3107.2,2.73514172]
[1642569608655,2.1222341,3107.8,3107.2,2.74139438]
[1642569608863,2.1222341,3107.8,3107.3,0.00568423]
[1642569609260,2.1222341,3107.8,3107.2,0.00625266]
[1642569610081,1.60968,3107.6,3107.2,0.00625266]
[1642569610562,2.4145493,3107.6,3107.2,0.00625266]
[1642569610767,2.4145493,3107.6,3107.1,0.00682108]
[1642569610961,2.4145493,3107.6,3107.2,2.73518977]
[1642569611216,2.4145493,3107.6,3107.1,0.00682108]
[1642569611217,1.60968,3107.6,3107.1,0.00682108]
[1642569611416,1.60968,3107.6,3107.3,0.00568423]
[1642569611614,0.80484,3107.6,3107.1,0.00682108]
[1642569612516,0.80484,3107.6,3107.2,2.73518872]
[1642569612717,1.31469,3107.6,3107.1,1.1026352]
[1642569612921,0.50984,3107.6,3107.3,0.00568423]
[1642569613124,0.80475,3107.9,3107.2,0.00625266]
[1642569613722,1.0,3108.0,3107.2,0.00625266]
[1642569614123,1.1321,3108.1,3107.2,0.00625266]
[1642569614525,1.1321,3108.1,3107.7,1.32559237]
[1642569614725,0.02210965,3108.4,3107.8,1.81364956]
[1642569614970,0.02210965,3108.4,3107.8,1.81649168]
[1642569615168,0.02210965,3108.4,3107.9,0.00227369]
[1642569615769,0.02210965,3108.4,3108.2,1.29264725]
[1642569615972,0.02210965,3108.4,3108.0,2.01703547]
[1642569616170,0.02210965,3108.4,3107.9,0.00227369]
[1642569616369,0.02210965,3108.4,3108.1,0.00113684]
[1642569616569,0.02210965,3108.4,3107.9,2.04301833]
[1642569616770,0.02210965,3108.4,3107.9,4.77982132]
[1642569616969,0.02210965,3108.4,3108.0,0.00170527]
[1642569617369,0.02210965,3108.4,3108.0,1.1300022]
[1642569617571,0.02210965,3108.4,3108.1,1.78836911]
[1642569617771,0.53605965,3108.7,3108.1,0.00113684]
[1642569618171,0.00170527,3108.6,3108.1,0.00113684]
[1642569618623,0.00113685,3108.5,3108.1,0.00113684]
[1642569619211,0.00113685,3108.5,3108.1,1.80142744]
[1642569619412,0.00113685,3108.5,3108.1,2.09115929]
[1642569620917,0.00113685,3108.5,3108.2,0.04335582]
[1642569622858,0.42443698,3108.8,3108.2,6.34335582]
[1642569622859,0.13007383,3108.8,3108.2,6.34335582]
[1642569623059,0.13819997,3109.1,3108.3,1.97388935]
[1642569623260,0.00113685,3108.7,3108.3,1.97388935]
[1642569624059,0.00113685,3108.7,3108.5,1.088995]
[1642569624260,0.00113685,3108.7,3108.6,5.42723362]
[1642569624459,0.00113685,3108.7,3108.6,3.55]
[1642569625764,0.00113685,3108.7,3108.6,3.58788557]
[1642569628013,1.3211552,3109.2,3108.7,3.4]
[1642569628213,0.00672256,3108.8,3108.7,3.4]
[1642569628816,0.00899625,3109.1,3108.7,3.4]
[1642569629013,0.00672256,3108.8,3108.7,3.4]
[1642569629412,0.00672256,3108.8,3108.6,0.03788557]
[1642569629613,0.00170527,3109.0,3108.6,0.03788557]
[1642569629861,0.00672256,3108.8,3108.6,0.03788557]
[1642569630864,1.61603256,3108.8,3108.6,0.01894221]
[1642569631266,2.13818912,3108.7,3108.5,2.762e-05]
[1642569631666,0.386,3108.6,3108.5,2.762e-05]
[1642569631867,3.50936199,3108.6,3108.3,0.00113684]
[1642569632068,4.50936199,3108.6,3108.5,0.00113684]
[1642569632367,0.80485,3108.0,3107.3,2.74289248]
[1642569632567,0.80485,3108.0,3107.4,2.73493455]
[1642569632768,0.80485,3108.0,3107.4,2.74232406]
[1642569632966,0.80485,3108.0,3107.5,2.74175564]
[1642569633168,0.80485,3107.9,3107.6,2.73493455]
[1642569633369,0.80485,3107.9,3107.6,2.74118721]
[1642569633622,0.80485,3107.8,3107.7,0.00568424]
[1642569634010,0.80485,3107.8,3107.3,0.00795793]
[1642569634207,0.80485,3107.8,3107.4,2.73501051]
[1642569634606,1.6096971,3107.8,3107.5,0.00682109]
[1642569635009,1.5596971,3107.8,3107.5,0.00682109]
[1642569635213,0.7548471,3107.8,3107.5,0.00682109]
[1642569635612,0.7548471,3107.8,3107.3,0.00795793]
[1642569635812,0.01406237,3107.8,3107.4,2.73512749]
[1642569636213,0.01406237,3107.8,3107.5,0.00682109]
[1642569636412,0.01406237,3107.8,3107.6,2.73512749]
[1642569636812,0.01406237,3107.8,3107.7,0.00568424]
[1642569637012,0.01406237,3107.8,3107.7,2.74081173]
[1642569638363,2.41636662,3108.4,3107.7,2.74081173]
[1642569638364,2.13042899,3108.4,3107.7,2.74081173]
[1642569638562,2.13042899,3108.4,3107.8,2.73512749]
[1642569638862,0.8046366,3108.3,3107.9,0.00454739]
[1642569639464,0.8046366,3108.3,3107.6,0.00625266]
[1642569639665,0.8046366,3108.3,3107.7,2.73480337]
[1642569640065,0.8046366,3108.3,3107.8,0.00511582]
[1642569640565,0.8046366,3108.3,3107.6,0.00625266]
[1642569640767,0.8046366,3108.3,3107.7,2.73480518]
[1642569640967,0.81768744,3108.3,3107.7,2.73480518]
[1642569641216,0.81768744,3108.3,3107.8,0.00511582]
[1642569641815,0.81768744,3108.3,3107.4,0.00738951]
[1642569642013,0.81768744,3108.3,3107.5,2.73485007]
[1642569642413,0.81768744,3108.3,3107.6,0.00625266]
[1642569642712,0.81768744,3108.3,3107.7,2.73485007]
[1642569643112,0.81768744,3108.3,3107.8,0.00511582]
[1642569643518,0.51998744,3108.3,3107.9,2.7347603]
[1642569643919,2.12930744,3108.3,3108.0,0.00397897]
[1642569644324,2.12930744,3108.3,3107.6,0.00625266]
[1642569644619,2.12930744,3108.3,3107.7,2.73476643]
[1642569644862,2.12930744,3108.3,3107.8,2.73476643]
[1642569645067,2.12930744,3108.3,3107.9,2.73476643]
[1642569645267,2.12930744,3108.3,3107.9,2.73931382]
[1642569645468,2.12930744,3108.3,3108.0,0.00397897]
[1642569645869,2.12930744,3108.3,3107.5,0.00682109]
[1642569646069,2.12930744,3108.3,3107.6,2.73484008]
[1642569646470,2.12930744,3108.3,3107.7,0.00568424]
[1642569646874,2.12930744,3108.3,3107.8,2.73484065]
[1642569647271,2.12930744,3108.3,3107.9,0.00454739]
[1642569647772,2.12930744,3108.3,3107.5,0.00682109]
[1642569647971,2.12930744,3108.3,3107.6,2.73489192]
[1642569648371,2.12930744,3108.3,3107.7,2.74057616]
[1642569648621,1.83590744,3108.3,3107.7,0.00568424]
[1642569648815,1.83590744,3108.3,3107.8,2.7399533]
[1642569649015,1.83590744,3108.3,3107.3,0.00795793]
[1642569649215,1.83590744,3108.3,3107.9,0.00454739]
[1642569649419,1.83590744,3108.3,3107.3,0.00795793]
[1642569649616,1.83590744,3108.3,3107.5,0.00682109]
[1642569649816,1.83590744,3108.3,3107.6,2.73483212]
[1642569650019,1.83590744,3108.3,3107.7,2.73483212]
[1642569650222,1.83590744,3108.3,3107.8,2.73483212]
[1642569650422,0.80471,3108.2,3107.8,2.73994794]
[1642569650621,0.80471,3108.2,3107.9,0.00454739]
[1642569650821,1.03124045,3108.3,3107.9,0.00454739]
[1642569651021,1.03124045,3108.3,3107.3,0.00795793]
[1642569651223,1.03124045,3108.3,3107.3,6.84519037]
[1642569651421,1.03124045,3108.3,3107.4,2.73483061]
[1642569651620,1.6094125,3108.2,3107.4,2.74222012]
[1642569651821,1.6094125,3108.2,3107.5,2.7416517]
[1642569652024,1.6094125,3108.2,3107.6,2.73483061]
[1642569652222,1.6094125,3108.2,3107.6,2.74108327]
[1642569652466,1.6094125,3108.2,3107.7,2.74051485]
[1642569652665,1.6094125,3108.2,3107.8,2.73483061]
[1642569652965,1.6094125,3108.2,3107.9,0.00454739]
[1642569653473,0.80471,3108.1,3107.9,0.00454739]
[1642569653667,0.50921,3108.1,3107.3,0.00795793]
[1642569653868,1.609474,3108.0,3107.4,2.73492374]
[1642569654167,1.609474,3108.0,3107.5,0.00682109]
[1642569654366,1.609474,3108.0,3107.6,2.73492374]
[1642569654572,0.80474,3108.0,3107.6,2.73492374]
[1642569654766,0.80474,3108.0,3107.7,0.00568424]
[1642569654969,0.80474,3108.0,3107.8,2.73492374]
[1642569655370,0.80474,3108.0,3107.9,0.00454739]
[1642569655972,0.80476,3107.9,3107.3,0.00795793]
[1642569656210,0.80476,3107.9,3107.4,2.73498232]
[1642569656511,0.80476,3107.9,3107.5,0.00682109]
[1642569656709,0.80476,3107.9,3107.6,2.73498232]
[1642569656909,0.01304811,3108.0,3107.6,2.73498232]
[1642569657114,0.01304811,3108.0,3107.7,0.00568424]
[1642569657310,0.01304811,3108.0,3107.8,2.73498232]
[1642569657711,0.01304811,3108.0,3107.9,0.00454739]
[1642569657911,0.01304811,3108.0,3107.9,2.73952971]
[1642569658712,1.33041071,3108.3,3107.9,0.00454739]
[1642569659112,0.80469,3108.2,3107.3,0.00795793]
[1642569659314,0.80471,3108.1,3107.4,2.73486644]
[1642569659515,0.80471,3108.1,3107.4,3.03486644]
[1642569659718,0.80471,3108.1,3107.5,2.74168753]
[1642569659962,0.80471,3108.1,3107.6,2.73486644]
[1642569660163,0.80471,3108.1,3107.6,2.7411191]
[1642569660363,0.80471,3108.1,3107.7,2.74055068]
[1642569660565,0.80471,3108.1,3107.8,2.73486644]
[1642569660765,0.80471,3108.1,3107.8,2.73998226]
[1642569661066,0.80471,3108.1,3107.9,0.00454739]
[1642569661466,0.80471,3108.1,3107.6,0.00625266]
[1642569661667,0.80471,3108.1,3107.7,2.73498055]
[1642569662168,0.80471,3108.1,3107.8,0.00511582]
[1642569662372,0.8048,3107.9,3107.8,0.00511582]
[1642569662769,1.60968,3107.9,3107.6,0.00625266]
[1642569663818,1.31568,3107.9,3107.7,2.73498734]
[1642569664217,1.31568,3107.9,3107.8,0.00511582]
[1642569664419,0.80473,3108.1,3107.8,0.00511582]
[1642569664620,1.8047,3108.2,3107.8,0.00511582]
[1642569664818,0.8047,3108.2,3107.6,0.00625266]
[1642569665124,0.8047,3108.2,3107.7,2.73493031]
[1642569665319,1.605,3108.5,3107.7,2.73493031]
[1642569665518,0.386,3108.5,3107.8,0.00511582]
[1642569665921,0.80463,3108.4,3107.9,0.05097276]
[1642569666320,0.80463,3108.4,3108.0,0.00397897]
[1642569666521,1.6093467,3108.3,3108.0,0.00397897]
[1642569667120,2.4140267,3108.3,3108.0,0.00397897]
[1642569667564,1.60935,3108.3,3108.0,0.00397897]
[1642569668965,1.31125,3108.3,3108.0,0.00397897]
[1642569670987,2.1159277,3108.3,3108.1,0.02550383]
[1642569671418,3.73498872,3108.3,3108.2,0.00284212]
[1642569671619,7.78852814,3108.3,3108.2,0.00284212]
[1642569671819,12.0938477,3108.3,3108.2,0.00284212]
[1642569674022,9.0438477,3108.3,3108.2,0.00284212]
[1642569674423,9.4298477,3108.3,3108.2,0.00284212]
[1642569675264,9.7298477,3108.3,3108.2,0.00284212]
[1642569676063,9.7298477,3108.3,3108.2,0.02833161]
[1642569679216,9.4294477,3108.3,3108.2,0.02833161]
[1642569681118,9.7294477,3108.3,3108.2,0.02833161]
[1642569683567,9.7294477,3108.3,3106.8,3.6357]
[1642569683568,6.65,3108.2,3106.8,3.6357]
[1642569683770,3.2199936,3107.6,3106.9,2.73549695]
[1642569683972,3.2199936,3107.6,3106.9,0.00738951]
[1642569684172,1.386,3107.5,3106.9,0.00738951]
[1642569684373,1.386,3107.5,3106.7,0.00852635]
[1642569684374,1.0876,3107.5,3106.7,0.00852635]
[1642569684572,1.0876,3107.5,3106.8,2.73565586]
[1642569685475,1.6100382,3107.4,3106.8,2.73565586]
[1642569685775,1.61012,3107.2,3106.8,2.73565586]
[1642569686221,2.61012,3107.2,3106.8,2.73565586]
[1642569686421,1.61012,3107.2,3106.8,2.73565586]
[1642569686622,1.80506,3107.1,3106.8,2.73565586]
[1642569686822,0.80506,3107.1,3106.8,2.73565586]
[1642569687023,0.80506,3107.0,3106.8,2.73565586]
[1642569687823,1.80506,3107.1,3106.8,2.73565586]
[1642569688022,0.80506,3107.1,3106.8,2.73565586]
[1642569688222,1.0,3107.1,3106.8,2.73565586]
[1642569688628,1.60987,3107.2,3106.8,2.73565586]
[1642569689525,1.31157,3107.2,3106.8,2.73565586]
[1642569689969,0.50662,3107.2,3106.8,2.73565586]
[1642569690867,0.02948263,3107.1,3106.8,2.73565586]
[1642569691068,0.805,3107.0,3106.7,0.00852635]
[1642569691273,0.80502,3106.9,3106.7,0.00852635]
[1642569691467,0.80502,3106.9,3106.8,2.73563974]
[1642569691870,0.80502,3106.9,3106.8,2.74359767]
[1642569692168,0.80502,3106.9,3106.8,0.00795793]
[1642569692570,0.80502,3106.9,3106.5,0.0096632]
[1642569692770,0.80502,3106.9,3106.6,2.73561375]
[1642569692969,0.80502,3106.9,3106.7,2.73561375]
[1642569693175,1.02948263,3107.1,3106.8,2.73561375]
[1642569693371,1.02948263,3107.1,3106.8,2.74357168]
[1642569693640,0.02948263,3107.1,3106.8,0.00795793]
[1642569694030,0.02948263,3107.1,3106.4,0.01023162]
[1642569694330,0.02948263,3107.1,3106.5,2.73557234]
[1642569694530,0.80499,3107.0,3106.5,2.73557234]
[1642569694730,0.50219,3107.0,3106.6,0.00909478]
[1642569694933,0.50219,3107.0,3106.7,2.73557234]
[1642569695333,0.50219,3107.0,3106.8,0.00795793]
[1642569695532,1.83444263,3107.1,3106.8,0.00795793]
[1642569695732,0.02948263,3107.1,3106.8,0.00795793]
[1642569695935,0.02948263,3107.1,3106.5,0.0096632]
[1642569696136,0.02948263,3107.1,3106.6,2.73550037]
[1642569696339,0.02948263,3107.1,3106.7,2.53502177]
[1642569696535,0.02948263,3107.1,3106.7,5.27904849]
[1642569696734,0.02948263,3107.1,3106.8,2.7434583]
[1642569696934,0.02948263,3107.1,3107.0,0.16119]
[1642569697133,0.02948263,3107.1,3107.0,4.67752689]
[1642569697367,0.02948263,3107.1,3107.0,2.74232145]
[1642569699870,2.4147611,3107.6,3107.1,4.25]
[1642569700076,2.4147611,3107.6,3107.0,0.00682108]
[1642569700077,1.60985,3107.6,3107.0,0.00682108]
[1642569700377,0.8049,3107.5,3107.1,2.73531627]
[1642569700577,0.80497,3107.4,3107.0,0.00682108]
[1642569700774,0.80497,3107.4,3106.7,3.2544]
[1642569700775,0.80497,3107.4,3107.2,0.00568424]
[1642569700974,0.80497,3107.4,3106.8,0.00795793]
[1642569700975,2.4149504,3107.4,3106.8,0.00795793]
[1642569701215,2.4149504,3107.4,3106.9,2.73548675]
[1642569701216,2.6099804,3107.4,3106.9,2.73548675]
[1642569701417,1.80499,3107.3,3106.9,2.73548675]
[1642569701620,1.80499,3107.3,3107.0,0.00682108]
[1642569702116,1.80499,3107.3,3106.5,0.0096632]
[1642569702317,0.80507,3107.1,3106.6,2.73564206]
[1642569702718,0.80507,3106.9,3106.7,0.00852635]
[1642569702919,0.80507,3106.9,3106.8,2.73564206]
[1642569703319,0.80507,3106.9,3106.8,2.74359999]
[1642569703518,2.41525,3106.9,3106.8,2.74359999]
[1642569703717,3.2203101,3106.9,3106.8,2.74359999]
[1642569703919,3.2203101,3106.9,3106.8,2.74364587]
[1642569704875,2.9282101,3106.9,3106.8,2.74364587]
[1642569705071,2.9282101,3106.9,3106.8,0.00795793]
[1642569705470,2.9282501,3106.9,3106.3,0.01080005]
[1642569705669,2.4153471,3106.8,3106.4,2.73578641]
[1642569706071,2.4153471,3106.8,3106.5,0.0096632]
[1642569706271,3.4153471,3106.8,3106.6,2.73578641]
[1642569706470,2.4153471,3106.8,3106.6,2.73578641]
[1642569706671,1.0,3106.7,3106.6,2.73578641]
[1642569706974,3.4153471,3106.8,3106.6,2.74488119]
[1642569707170,3.4153471,3106.8,3106.6,0.00909478]
[1642569707372,1.80511,3106.8,3106.7,0.00852635]
[1642569707570,2.61032,3106.8,3106.3,0.01080005]
[1642569707771,2.41562,3106.7,3106.4,2.73595108]
[1642569707972,0.8052,3106.6,3106.4,2.73595108]
[1642569708170,0.8052,3106.6,3106.5,0.0096632]
[1642569708822,2.4155869,3106.6,3106.3,0.01080005]
[1642569709022,2.4155869,3106.6,3106.4,2.73603498]
[1642569709023,4.3932769,3106.6,3106.4,2.73603498]
[1642569709222,4.3932769,3106.6,3106.0,0.01250532]
[1642569709422,3.5880869,3106.6,3106.5,0.0096632]
[1642569709624,3.5880869,3106.6,3106.0,0.01250532]
[1642569709625,4.2740869,3106.6,3106.0,0.01250532]
[1642569709821,6.7431,3106.5,3106.2,0.01136847]
[1642569710023,0.386,3106.4,3105.7,0.01421059]
[1642569710225,0.8053071,3106.3,3106.2,0.01136847]
[1642569710424,2.8019471,3106.3,3105.7,0.01421059]
[1642569710623,1.6106445,3106.2,3105.9,0.01307374]
[1642569710923,1.6106445,3106.2,3106.0,2.73637765]
[1642569711124,1.6106445,3106.2,3105.9,0.01307374]
[1642569711325,1.6106445,3106.2,3106.1,0.01193689]
[1642569711523,0.8053475,3106.0,3105.3,0.01648428]
[1642569711723,0.80535,3105.8,3105.4,2.73643815]
[1642569712127,0.80535,3105.8,3105.5,0.01534743]
[1642569712366,0.80535,3105.8,3105.6,2.73643815]
[1642569712566,0.80535,3105.7,3105.6,2.73643815]
[1642569712966,0.80535,3105.7,3105.4,2.73643815]
[1642569713166,0.80535,3105.7,3105.5,2.73643815]
[1642569713367,0.80537,3105.6,3105.5,0.01534743]
[1642569713867,0.80537,3105.6,3105.2,0.01705271]
[1642569713868,1.6107044,3105.6,3105.2,0.01705271]
[1642569714067,2.4160744,3105.6,3105.2,0.01705271]
[1642569714271,2.4160744,3105.6,3105.1,0.01762113]
[1642569714472,1.6107044,3105.6,3105.1,0.01762113]
[1642569714871,1.3183044,3105.6,3105.1,0.01762113]
[1642569715271,1.3183044,3105.6,3105.1,1.84076242]
[1642569715672,1.3183044,3105.6,3105.2,0.01705271]
[1642569715873,1.3183044,3105.6,3105.2,0.03740816]
[1642569716129,11.9317,3106.5,3105.2,0.03740816]
[1642569716130,1.1493,3106.4,3105.2,0.03740816]
[1642569716328,6.4345,3106.5,3105.3,0.17767428]
[1642569716527,6.4345,3106.5,3105.3,2.98276428]
[1642569716732,6.4345,3106.5,3105.4,18.85591586]
[1642569716929,6.4345,3106.5,3105.5,7.55464191]
[1642569717128,6.4345,3106.5,3105.5,3.45122102]
[1642569717129,0.8051378,3106.4,3105.5,3.45122102]
[1642569717334,0.8051378,3106.4,3105.6,0.01477901]
[1642569718428,1.61038,3106.3,3105.4,0.01591586]
[1642569718832,0.80519,3106.3,3105.4,0.01591586]
[1642569719032,0.8051378,3106.4,3105.4,0.01591586]
[1642569720073,0.8051378,3106.4,3105.4,0.82104586]
[1642569720074,0.5082378,3106.4,3105.4,0.82104586]
[1642569720275,1.3133778,3106.4,3105.5,1.89235412]
[1642569720475,6.4345,3106.5,3105.5,1.89235412]
[1642569720678,6.4345,3106.5,3105.6,0.17596901]
[1642569720877,0.01345208,3106.4,3105.7,21.16345998]
[1642569721076,0.01345208,3106.4,3105.8,4.10342089]
[1642569721277,0.01345208,3106.4,3105.9,2.00194753]
[1642569721576,0.01345208,3106.4,3106.0,0.01250532]
[1642569721777,0.01345208,3106.4,3106.0,0.97861532]
[1642569721982,0.01345208,3106.4,3106.0,1.27861532]
[1642569722178,0.01345208,3106.4,3106.1,0.01193689]
[1642569722978,0.01345208,3106.4,3106.1,0.81685689]
[1642569723379,0.01345208,3106.4,3106.2,0.01136847]
[1642569725141,6.15165208,3106.5,3106.2,0.01136847]
[1642569725941,6.15165208,3106.5,3106.3,0.02625692]
[1642569726341,6.15165208,3106.5,3106.4,5.66023162]
[1642569727570,6.15165208,3106.5,3106.4,7.11863385]
[1642569727766,6.15165208,3106.5,3106.4,7.57982385]
[1642569728368,6.15165208,3106.5,3106.4,10.31531228]
[1642569728765,6.15165208,3106.5,3106.4,10.61531228]
[1642569729770,6.15165208,3106.5,3106.4,10.31531228]
[1642569730175,5.86165208,3106.5,3106.4,10.31531228]
[1642569730772,5.86165208,3106.5,3106.4,10.61531228]
[1642569730975,5.86165208,3106.5,3106.4,10.63502426]
[1642569733115,5.86165208,3106.5,3106.4,13.83502426]
[1642569735379,5.55955208,3106.5,3106.4,13.83502426]
[1642569736579,6.878674,3107.6,3106.5,6.65]
[1642569736580,3.659,3107.6,3106.5,6.65]
[1642569736782,1.61217515,3107.7,3106.6,24.65555966]
[1642569736981,1.61217515,3107.7,3106.7,6.83871344]
[1642569737181,1.61217515,3107.7,3106.8,2.46787311]
[1642569737381,1.61217515,3107.7,3106.9,22.54137843]
[1642569737581,7.5689,3108.4,3107.6,6.65]
[1642569737582,3.7621,3108.4,3107.6,6.65]
[1642569737782,0.237228,3108.7,3108.0,1.52043296]
[1642569738179,0.00170527,3108.5,3108.0,1.52043296]
[1642569738626,0.00113685,3108.4,3108.0,1.52043296]
[1642569739021,0.00227369,3108.6,3108.0,1.52043296]
[1642569739522,0.00227369,3108.6,3107.7,3.57944698]
[1642569739926,0.00227369,3108.6,3107.8,0.0022737]
[1642569740125,0.00227369,3108.6,3107.8,1.8065516]
[1642569740530,2.35530339,3108.7,3108.0,4.95]
[1642569741025,2.35530339,3108.7,3107.8,3.46192683]
[1642569741026,2.35530339,3108.7,3108.1,0.00284211]
[1642569741428,2.35530339,3108.7,3107.9,0.00397896]
[1642569741826,1.55071339,3108.7,3107.9,0.00397896]
[1642569742468,1.55071339,3108.7,3107.9,3.20397896]
[1642569742668,1.31348539,3108.7,3107.9,3.20397896]
[1642569742869,1.54763869,3108.7,3108.0,0.00341054]
[1642569743271,0.8046,3108.6,3108.0,0.00341054]
[1642569743473,0.8045962,3108.5,3108.0,0.00341054]
[1642569744273,0.80464,3108.4,3108.0,0.00341054]
[1642569744478,0.804691,3108.3,3107.9,3.01761054]
[1642569744682,0.804691,3108.3,3107.9,2.49321054]
[1642569744683,6.3126095,3108.0,3107.9,2.49321054]
[1642569744878,6.3126095,3108.0,3107.9,2.08191054]
[1642569744879,12.7477095,3108.0,3107.9,2.08191054]
[1642569745277,6.65,3107.9,3107.8,3.322e-05]
[1642569745478,0.805,3107.5,3106.7,2.0]
[1642569745782,0.805,3107.5,3106.8,2.73547842]
[1642569745783,0.804996,3107.4,3106.8,2.73547842]
[1642569746217,0.804996,3107.4,3106.9,0.00625266]
[1642569746621,0.805,3107.3,3106.9,0.00625266]
[1642569746822,0.804995,3107.2,3106.8,0.00682108]
[1642569747224,0.804995,3107.2,3106.7,0.0073895]
[1642569747522,1.609995,3107.2,3106.7,0.0073895]
[1642569747722,2.414995,3107.2,3106.7,0.0073895]
[1642569747923,2.414995,3107.2,3106.6,0.00795793]
[1642569748123,1.609995,3107.2,3106.7,2.7355246]
[1642569748523,2.414995,3107.2,3106.8,0.00682108]
[1642569749124,2.414995,3107.2,3106.6,0.00795793]
[1642569749324,2.414995,3107.2,3106.7,2.73553205]
[1642569749867,1.6100067,3107.0,3106.8,0.00682108]
[1642569750072,0.805,3107.1,3106.8,0.00682108]
[1642569750374,0.805,3107.1,3106.6,0.00795793]
[1642569750573,0.80495,3107.4,3106.7,2.73552911]
[1642569750774,0.80491,3107.3,3106.8,0.02871987]
[1642569750976,1.60982,3107.6,3106.8,0.03554095]
[1642569750977,2.41469,3107.6,3106.8,0.03554095]
[1642569751272,1.5773,3107.8,3106.8,0.03554095]
[1642569752173,1.5773,3107.8,3107.2,1.25675041]
[1642569752376,1.5773,3107.8,3107.3,1.7870544]
[1642569752377,1.9955998,3107.8,3107.3,1.7870544]
[1642569752577,8.04714075,3107.9,3107.3,0.00397896]
[1642569752775,8.04714075,3107.9,3107.4,0.00341054]
[1642569752977,8.04714075,3107.9,3107.3,1.90437869]
[1642569753178,8.04714075,3107.9,3107.4,0.00341054]
[1642569754220,8.04714075,3107.9,3107.4,2.73830341]
[1642569754421,8.04714075,3107.9,3107.5,1.7915876]
[1642569754621,8.04714075,3107.9,3107.5,1.79442972]
[1642569754822,8.04714075,3107.9,3107.6,0.00227369]
[1642569755225,8.04714075,3107.9,3107.5,2.03187742]
[1642569755427,8.04714075,3107.9,3107.5,2.03471954]
[1642569755627,8.04714075,3107.9,3107.6,0.00227369]
[1642569755826,7.75574075,3107.9,3107.7,0.02546958]
[1642569756231,7.75574075,3107.9,3107.8,0.00113685]
[1642569757227,6.1437,3107.9,3107.8,0.00113685]
[1642569760775,6.1437,3107.9,3107.8,0.02657438]
[1642569760977,5.8427,3107.9,3107.8,0.02657438]
[1642569762724,5.8427,3107.9,3107.8,3.22657438]
[1642569766079,5.5504,3107.9,3107.8,3.2265818]
[1642569771127,5.2583,3107.9,3107.8,3.2265818]
[1642569776218,4.9658,3107.9,3107.8,3.2265818]
[1642569779629,4.9658,3107.9,3107.8,5.2265818]
[1642569779874,4.9658,3107.9,3107.8,3.2265818]
[1642569780077,4.9658,3107.9,3107.8,5.96135964]
[1642569781181,4.6736,3107.9,3107.8,5.96135964]
[1642569782383,4.6736,3107.9,3107.8,3.2265818]
[1642569782881,4.6736,3107.9,3107.8,5.96139947]
[1642569783481,4.6736,3107.9,3107.8,7.81793262]
[1642569783724,4.6736,3107.9,3107.8,5.96139947]
[1642569784128,0.2251533,3108.7,3107.9,6.7]
[1642569784325,1.221,3108.8,3108.0,5.37842537]
[1642569784524,0.00170527,3108.3,3108.1,2.73481767]
[1642569784732,0.00170527,3108.3,3108.2,8.56972669]
[1642569784927,4.4287,3109.1,3108.2,11.30454436]
[1642569785127,4.4287,3109.1,3108.2,8.56972669]
[1642569785329,0.00568424,3109.0,3108.2,8.56972669]
[1642569785829,0.00511581,3108.9,3108.2,8.59509603]
[1642569786029,0.00511581,3108.9,3108.3,1.15749666]
[1642569786228,0.00454739,3108.8,3108.4,1.83409312]
[1642569786429,0.20709549,3109.0,3108.5,4.35]
[1642569786628,0.20709549,3109.0,3108.5,4.35170527]
[1642569787234,1.01158549,3109.0,3108.5,0.00170527]
[1642569787872,1.01158549,3109.0,3108.3,0.00284212]
[1642569790479,0.20709549,3109.0,3108.3,0.00284212]
[1642569790880,0.20709549,3109.0,3108.4,0.02535902]
[1642569791725,0.20489549,3109.0,3108.4,0.02535902]
[1642569793928,0.20489549,3109.0,3108.4,3.22535902]
[1642569795077,0.20489549,3109.0,3108.5,1.7770206]
[1642569795273,0.20489549,3109.0,3108.4,3.22535902]
[1642569795474,0.20489549,3109.0,3108.6,0.00113685]
[1642569795876,0.20489549,3109.0,3108.6,0.02643971]
[1642569796476,1.6088554,3109.1,3108.6,0.02643971]
[1642569796875,1.30729225,3109.1,3108.6,0.02643971]
[1642569797075,1.30729225,3109.1,3108.7,0.00170527]
[1642569797476,2.11176225,3109.1,3108.7,0.00170527]
[1642569800833,2.11176225,3109.1,3108.9,0.02528186]
[1642569802033,1.81466225,3109.1,3108.9,0.02528186]
[1642569802235,0.80441,3109.2,3108.9,0.02528186]
[1642569802478,2.41564483,3109.4,3108.9,0.02528186]
[1642569802877,0.00170527,3109.3,3108.9,0.02528186]
[1642569803277,0.00113684,3109.2,3109.0,1.13786996]
[1642569803480,0.00113684,3109.2,3109.1,1.80997739]